Workbook

Sheet Overview
B2: Sales budget | D2: 2018 | E2: =+D2+1 -> 2019 | F2: =+E2+1 -> 2020 | G2: =+F2+1 -> 2021 | I2: =+G2+1 -> 2022 | J2: =+I2 -> 2022 | K2: Budget | L2: VJ | N2: =+J2+1 -> 2023 | O2: FC | Q2: =+N2+1 -> 2024 | R2: =+Q2+1 -> 2025 | S2: =+R2+1 -> 2026 | T2: =+S2+1 -> 2027 | U2: =+T2+1 -> 2028
B3: in TEUR | D3: PY | E3: PY | F3: PY | G3: PY | I3: B | J3: FC | K3: Δ % | L3: Δ % | N3: B | O3: Δ % | Q3: B | R3: B | S3: B | T3: B | U3: B
B5: Segment 1 | D5: =+SUM(D6:D11) -> 100 | E5: =+SUM(E6:E11) -> 200 | F5: 3 | G5: 0 | I5: =+SUM(I6:I11) -> 0 | J5: 150 | K5: =IFERROR(J5/I5-1,"n/a") -> n/a | L5: =IFERROR(J5/G5-1,"n/a") -> n/a | N5: =+SUM(N6:N11) -> 0 | O5: =IFERROR(N5/J5-1,"n/a") -> -100% | Q5: =+SUM(Q6:Q11) -> 0 | R5: 0 | S5: 0 | T5: =+SUM(T6:T11) -> 0 | U5: 0
B6: Sub segment 101 | D6: 100 | E6: 200 | F6: 3 | J6: 150 | K6: =IFERROR(J6/I6-1,"n/a") -> n/a | L6: =IFERROR(J6/G6-1,"n/a") -> n/a | O6: =IFERROR(N6/J6-1,"n/a") -> -100%
B7: Sub segment 102 | K7: n/a | L7: n/a | O7: n/a
B8: Sub segment 103 | K8: n/a | L8: n/a | O8: n/a
B9: Sub segment 104 | K9: n/a | L9: n/a | O9: n/a
B10: Sub segment 105 | K10: n/a | L10: n/a | O10: n/a
B12: Segment 2 | D12: =+SUM(D13:D17) -> 0 | E12: =+SUM(E13:E17) -> 100 | F12: 200 | G12: 3 | I12: =+SUM(I13:I17) -> 0 | J12: 0 | K12: =IFERROR(J12/I12-1,"n/a") -> n/a | L12: =IFERROR(J12/G12-1,"n/a") -> -100% | N12: =+SUM(N13:N17) -> 200 | O12: =IFERROR(N12/J12-1,"n/a") -> n/a | Q12: =+SUM(Q13:Q17) -> 0 | R12: 0 | S12: 0 | T12: =+SUM(T13:T17) -> 0 | U12: 0
B13: Sub segment 201 | K13: =IFERROR(J13/I13-1,"n/a") -> n/a | L13: =IFERROR(J13/G13-1,"n/a") -> n/a | O13: =IFERROR(N13/J13-1,"n/a") -> n/a
B14: Sub segment 202 | E14: 100 | F14: 200 | G14: 3 | K14: n/a | L14: -100% | O14: n/a
B15: Sub segment 203 | K15: n/a | L15: n/a | O15: n/a
B16: Sub segment 204 | K16: n/a | L16: n/a | N16: 200 | O16: n/a
B18: Segment 3 | D18: =+SUM(D19:D23) -> 0 | E18: =+SUM(E19:E23) -> 200 | F18: =+SUM(F19:F23) -> 200 | G18: =+SUM(G19:G23) -> 0 | I18: =+SUM(I19:I23) -> 0 | J18: =+SUM(J19:J23) -> 0 | K18: =IFERROR(J18/I18-1,"n/a") -> n/a | L18: =IFERROR(J18/G18-1,"n/a") -> n/a | N18: =+SUM(N19:N23) -> 200 | O18: =IFERROR(N18/J18-1,"n/a") -> n/a | Q18: =+SUM(Q19:Q23) -> 0 | R18: =+SUM(R19:R23) -> 200 | S18: =+SUM(S19:S23) -> 0 | T18: 0 | U18: =+SUM(U19:U23) -> 0
B19: Sub segment 301 | K19: =IFERROR(J19/I19-1,"n/a") -> n/a | L19: =IFERROR(J19/G19-1,"n/a") -> n/a | O19: =IFERROR(N19/J19-1,"n/a") -> n/a
B20: Sub segment 302 | K20: n/a | L20: n/a | N20: 200 | O20: n/a | R20: 200
B21: Sub segment 303 | E21: 200 | K21: n/a | L21: n/a | O21: n/a
B22: Sub segment 304 | F22: 200 | K22: n/a | L22: n/a | O22: n/a
B24: Segment 4 | D24: =+SUM(D25:D29) -> 0 | E24: =+SUM(E25:E29) -> 200 | F24: =+SUM(F25:F29) -> 0 | G24: =+SUM(G25:G29) -> 200 | I24: =+SUM(I25:I29) -> 200 | J24: =+SUM(J25:J29) -> 0 | K24: =IFERROR(J24/I24-1,"n/a") -> -100% | L24: =IFERROR(J24/G24-1,"n/a") -> -100% | N24: =+SUM(N25:N29) -> 200 | O24: =IFERROR(N24/J24-1,"n/a") -> n/a | Q24: =+SUM(Q25:Q29) -> 200 | R24: =+SUM(R25:R29) -> 0 | S24: =+SUM(S25:S29) -> 200 | T24: 200 | U24: =+SUM(U25:U29) -> 200
B25: Sub segment 401 | K25: =IFERROR(J25/I25-1,"n/a") -> n/a | L25: =IFERROR(J25/G25-1,"n/a") -> n/a | O25: =IFERROR(N25/J25-1,"n/a") -> n/a
B26: Sub segment 402 | E26: 200 | K26: n/a | L26: n/a | N26: 200 | O26: n/a | Q26: 200 | S26: 200 | T26: 200 | U26: 200
B27: Sub segment 403 | G27: 200 | K27: n/a | L27: -100% | O27: n/a
B28: Sub segment 404 | I28: 200 | K28: -100% | L28: n/a | O28: n/a
B30: Segment 5 | D30: =+SUM(D31:D38) -> 200 | E30: =+SUM(E31:E38) -> 200 | F30: 0 | G30: 0 | I30: =+SUM(I31:I38) -> 200 | J30: 200 | K30: =IFERROR(J30/I30-1,"n/a") -> 0% | L30: =IFERROR(J30/G30-1,"n/a") -> n/a | N30: =+SUM(N31:N38) -> 200 | O30: =IFERROR(N30/J30-1,"n/a") -> 0% | Q30: =+SUM(Q31:Q38) -> 0 | R30: 200 | S30: 200 | T30: =+SUM(T31:T38) -> 200 | U30: 200
B31: Sub segment 501 | K31: =IFERROR(J31/I31-1,"n/a") -> n/a | L31: =IFERROR(J31/G31-1,"n/a") -> n/a | O31: =IFERROR(N31/J31-1,"n/a") -> n/a
B32: Sub segment 502 | D32: 200 | K32: n/a | L32: n/a | O32: n/a
B33: Sub segment 503 | I33: 200 | J33: 200 | K33: 0% | L33: n/a | N33: 200 | O33: 0%
B34: Sub segment 504 | K34: n/a | L34: n/a | O34: n/a | R34: 200
B35: Sub segment 505 | K35: n/a | L35: n/a | O35: n/a | S35: 200 | T35: 200 | U35: 200
B36: Sub segment 506 | E36: 200 | K36: n/a | L36: n/a | O36: n/a
B37: Sub segment 507 | K37: n/a | L37: n/a | O37: n/a
B39: Total | D39: =+D5+D12+D18+D24+D30 -> 300 | E39: =+E5+E12+E18+E24+E30 -> 900 | F39: 403 | G39: 203 | I39: =+I5+I12+I18+I24+I30 -> 400 | J39: 350 | K39: =IFERROR(J39/I39-1,"n/a") -> -13% | L39: =IFERROR(J39/G39-1,"n/a") -> 72% | N39: =+N5+N12+N18+N24+N30 -> 800 | O39: =IFERROR(N39/J39-1,"n/a") -> 129% | Q39: =+Q5+Q12+Q18+Q24+Q30 -> 200 | R39: 400 | S39: 400 | T39: =+T5+T12+T18+T24+T30 -> 400 | U39: 400
B42: Customer count | D42: 20 | E42: 15 | F42: 25 | G42: 10 | I42: 15 | J42: 15 | K42: =IFERROR(J42/I42-1,"n/a") -> 0% | L42: =IFERROR(J42/G42-1,"n/a") -> 50% | N42: 18 | O42: =IFERROR(N42/J42-1,"n/a") -> 20% | Q42: 15 | R42: 17 | S42: 15 | T42: 15 | U42: 15
B43: Sales per customer | D43: =+D39/D42 -> 15 | E43: =+E39/E42 -> 60 | F43: 16 | G43: 20 | I43: =+I39/I42 -> 27 | J43: 23 | K43: -13% | L43: 15% | N43: =+N39/N42 -> 44 | O43: 90% | Q43: =+Q39/Q42 -> 13 | R43: 24 | S43: 27 | T43: =+T39/T42 -> 27 | U43: 27
B45: New customers | D45: 4 | E45: 5 | F45: 5 | G45: 4 | I45: 5 | J45: 5 | K45: =IFERROR(J45/I45-1,"n/a") -> 0% | L45: =IFERROR(J45/G45-1,"n/a") -> 25% | N45: 6 | O45: =IFERROR(N45/J45-1,"n/a") -> 20% | Q45: 7 | R45: 8 | S45: 9 | T45: 9 | U45: 9
